[Event "Late-Titled-Tuesday-Blitz-August-29-2023"]
[Site "Chess.com"]
[Date "2023.08.29"]
[Round "1"]
[White "Misticpikachu"]
[Black "CarrotsandPizza"]
[Result "0-1"]
[WhiteElo "2595"]
[BlackElo "2327"]
[TimeControl "180+1"]
[EndTime "14:08:50 PDT"]
[Termination "CarrotsandPizza won by checkmate"]

1. c4 {[%clk 0:03:00.9]} 1... e5 {[%clk 0:02:53.6]} 2. Nc3 {[%clk 0:03:01.2]}
2... Nf6 {[%clk 0:02:53.2]} 3. Nf3 {[%clk 0:03:01.8]} 3... d6 {[%clk 0:02:49.1]}
4. g3 {[%clk 0:03:00.3]} 4... g6 {[%clk 0:02:48.8]} 5. Bg2 {[%clk 0:02:57.7]}
5... Bg7 {[%clk 0:02:49.3]} 6. O-O {[%clk 0:02:58.4]} 6... O-O {[%clk
0:02:49.7]} 7. d4 {[%clk 0:02:59.1]} 7... Nbd7 {[%clk 0:02:49]} 8. b3 {[%clk
0:02:58.3]} 8... Re8 {[%clk 0:02:47.9]} 9. Bb2 {[%clk 0:02:58.6]} 9... e4 {[%clk
0:02:48]} 10. Nd2 {[%clk 0:02:57.8]} 10... e3 {[%clk 0:02:48.3]} 11. fxe3 {[%clk
0:02:58]} 11... Ng4 {[%clk 0:02:48.8]} 12. Nde4 {[%clk 0:01:40.9]} 12... Nxe3
{[%clk 0:02:42.9]} 13. Qd3 {[%clk 0:01:40.3]} 13... Nxf1 {[%clk 0:02:34.8]} 14.
Rxf1 {[%clk 0:01:40.6]} 14... Nf6 {[%clk 0:02:33.2]} 15. Nxf6+ {[%clk
0:01:12.2]} 15... Bxf6 {[%clk 0:02:34.1]} 16. Ne4 {[%clk 0:01:07.2]} 16... Bg7
{[%clk 0:02:27.6]} 17. Nd2 {[%clk 0:00:51.5]} 17... c6 {[%clk 0:02:26.4]} 18. e4
{[%clk 0:00:51.7]} 18... c5 {[%clk 0:02:14]} 19. Nf3 {[%clk 0:00:48.9]} 19...
Bg4 {[%clk 0:02:13.7]} 20. Qd2 {[%clk 0:00:27.9]} 20... Bxf3 {[%clk 0:02:10.4]}
21. Bxf3 {[%clk 0:00:28.8]} 21... Bxd4+ {[%clk 0:02:06.4]} 22. Bxd4 {[%clk
0:00:29.7]} 22... cxd4 {[%clk 0:02:06.7]} 23. Qxd4 {[%clk 0:00:30.6]} 23... Qb6
{[%clk 0:02:06.7]} 24. Qxb6 {[%clk 0:00:30.5]} 24... axb6 {[%clk 0:02:06.9]} 25.
a4 {[%clk 0:00:31.4]} 25... Kf8 {[%clk 0:01:54.7]} 26. Rd1 {[%clk 0:00:31.7]}
26... Ke7 {[%clk 0:01:54.7]} 27. Kf2 {[%clk 0:00:32.2]} 27... Rac8 {[%clk
0:01:52]} 28. Ke3 {[%clk 0:00:31.6]} 28... Rc5 {[%clk 0:01:51.9]} 29. Kd4 {[%clk
0:00:30.7]} 29... Kd7 {[%clk 0:01:47.5]} 30. Rf1 {[%clk 0:00:27.8]} 30... Kc7
{[%clk 0:01:45.6]} 31. Bg4 {[%clk 0:00:26.2]} 31... Re7 {[%clk 0:01:44.5]} 32.
Rf6 {[%clk 0:00:24.8]} 32... Rce5 {[%clk 0:01:44]} 33. Bf3 {[%clk 0:00:25]}
33... R5e6 {[%clk 0:01:42.2]} 34. Rf4 {[%clk 0:00:24.2]} 34... g5 {[%clk
0:01:42]} 35. Rf5 {[%clk 0:00:24.3]} 35... Re5 {[%clk 0:01:29.8]} 36. Rf6 {[%clk
0:00:21.3]} 36... g4 {[%clk 0:01:26.7]} 37. Bg2 {[%clk 0:00:21.2]} 37... Rh5
{[%clk 0:01:23.9]} 38. Bf1 {[%clk 0:00:16]} 38... Rxh2 {[%clk 0:01:19.5]} 39.
Rf4 {[%clk 0:00:16.6]} 39... Rb2 {[%clk 0:01:15]} 40. Rxg4 {[%clk 0:00:15.4]}
40... Rxb3 {[%clk 0:01:14.3]} 41. Bd3 {[%clk 0:00:15.9]} 41... Rb2 {[%clk
0:01:10.4]} 42. Rh4 {[%clk 0:00:16.1]} 42... f6 {[%clk 0:01:03.9]} 43. Rh6
{[%clk 0:00:14.4]} 43... Rf7 {[%clk 0:01:02.7]} 44. Kd5 {[%clk 0:00:09.8]} 44...
Kd7 {[%clk 0:01:03.1]} 45. Kd4 {[%clk 0:00:07.5]} 45... Ra2 {[%clk 0:01:02.6]}
46. Ke3 {[%clk 0:00:07.3]} 46... Rxa4 {[%clk 0:01:02.3]} 47. Be2 {[%clk
0:00:08]} 47... Ra2 {[%clk 0:01:01.1]} 48. c5 {[%clk 0:00:04]} 48... bxc5 {[%clk
0:00:55.7]} 49. Bg4+ {[%clk 0:00:03]} 49... Ke7 {[%clk 0:00:55.4]} 50. Kf4
{[%clk 0:00:03.6]} 50... Rg7 {[%clk 0:00:55.5]} 51. Bf5 {[%clk 0:00:03.1]} 51...
Rf2+ {[%clk 0:00:53.5]} 52. Ke3 {[%clk 0:00:03.3]} 52... Rf1 {[%clk 0:00:53.6]}
53. Bxh7 {[%clk 0:00:02.8]} 53... Rxg3+ {[%clk 0:00:52.3]} 54. Ke2 {[%clk
0:00:03.4]} 54... Rf4 {[%clk 0:00:49.3]} 55. Bf5 {[%clk 0:00:03.6]} 55... Rg7
{[%clk 0:00:49.3]} 56. Rh8 {[%clk 0:00:03.6]} 56... Rxf5 {[%clk 0:00:39.5]} 57.
exf5 {[%clk 0:00:04.5]} 57... Rg5 {[%clk 0:00:39.2]} 58. Rb8 {[%clk 0:00:05.4]}
58... Kd7 {[%clk 0:00:37.4]} 59. Rxb7+ {[%clk 0:00:05.7]} 59... Kc6 {[%clk
0:00:38]} 60. Rb8 {[%clk 0:00:04]} 60... Rxf5 {[%clk 0:00:38.4]} 61. Rc8+ {[%clk
0:00:04.8]} 61... Kd5 {[%clk 0:00:39]} 62. Kd3 {[%clk 0:00:04.9]} 62... Rf3+
{[%clk 0:00:38.9]} 63. Ke2 {[%clk 0:00:05.4]} 63... Ra3 {[%clk 0:00:39.4]} 64.
Rf8 {[%clk 0:00:05.7]} 64... Ke5 {[%clk 0:00:38.8]} 65. Re8+ {[%clk 0:00:06.3]}
65... Kd4 {[%clk 0:00:39.2]} 66. Rd8 {[%clk 0:00:07.2]} 66... Ra2+ {[%clk
0:00:39.1]} 67. Kf3 {[%clk 0:00:07.3]} 67... d5 {[%clk 0:00:39.3]} 68. Rf8
{[%clk 0:00:07.3]} 68... Ra1 {[%clk 0:00:38.7]} 69. Ke2 {[%clk 0:00:07.1]} 69...
c4 {[%clk 0:00:38.4]} 70. Kd2 {[%clk 0:00:07.2]} 70... Ra2+ {[%clk 0:00:38]} 71.
Kd1 {[%clk 0:00:07.5]} 71... Rf2 {[%clk 0:00:38.5]} 72. Ke1 {[%clk 0:00:07.5]}
72... Rf4 {[%clk 0:00:38.4]} 73. Kd2 {[%clk 0:00:07.9]} 73... c3+ {[%clk
0:00:37.8]} 74. Kd1 {[%clk 0:00:08.5]} 74... Kd3 {[%clk 0:00:37.6]} 75. Ke1
{[%clk 0:00:07.3]} 75... d4 {[%clk 0:00:38]} 76. Rd8 {[%clk 0:00:07]} 76... Rf5
{[%clk 0:00:35.9]} 77. Rd7 {[%clk 0:00:05.3]} 77... Rf4 {[%clk 0:00:36.3]} 78.
Rd8 {[%clk 0:00:05.5]} 78... f5 {[%clk 0:00:36.9]} 79. Rd7 {[%clk 0:00:05.7]}
79... Re4+ {[%clk 0:00:37]} 80. Kf2 {[%clk 0:00:03.6]} 80... c2 {[%clk
0:00:37.1]} 81. Rc7 {[%clk 0:00:03.4]} 81... Kd2 {[%clk 0:00:37.5]} 82. Kg3
{[%clk 0:00:03.6]} 82... d3 {[%clk 0:00:38]} 83. Rf7 {[%clk 0:00:03.2]} 83...
c1=Q {[%clk 0:00:37.7]} 84. Rxf5 {[%clk 0:00:03.3]} 84... Qg1+ {[%clk
0:00:37.1]} 85. Kh3 {[%clk 0:00:01.7]} 85... Qg4+ {[%clk 0:00:36]} 86. Kh2
{[%clk 0:00:02]} 86... Re2+ {[%clk 0:00:36.1]} 87. Kh1 {[%clk 0:00:01.7]} 87...
Qg2# {[%clk 0:00:36.1]} 0-1

[Event "Late-Titled-Tuesday-Blitz-August-29-2023"]
[Site "Chess.com"]
[Date "2023.08.29"]
[Round "1"]
[White "tteshan"]
[Black "rochaaaaaaaaaa"]
[Result "1-0"]
[WhiteElo "2562"]
[BlackElo "2230"]
[TimeControl "180+1"]
[EndTime "14:08:52 PDT"]
[Termination "tteshan won by resignation"]

1. e4 {[%clk 0:03:00.9]} 1... c6 {[%clk 0:02:59.5]} 2. d4 {[%clk 0:03:00.8]}
2... d5 {[%clk 0:02:59.7]} 3. Nc3 {[%clk 0:03:01.3]} 3... dxe4 {[%clk
0:02:59.1]} 4. Nxe4 {[%clk 0:03:02.2]} 4... Bf5 {[%clk 0:02:59.3]} 5. Ng3 {[%clk
0:03:02.4]} 5... Bg6 {[%clk 0:02:59.3]} 6. h4 {[%clk 0:03:03.1]} 6... h6 {[%clk
0:02:59.2]} 7. Nf3 {[%clk 0:03:03.3]} 7... Nd7 {[%clk 0:02:59]} 8. Bd3 {[%clk
0:03:03.9]} 8... Bxd3 {[%clk 0:02:57.9]} 9. Qxd3 {[%clk 0:03:04.8]} 9... e6
{[%clk 0:02:58.1]} 10. Bf4 {[%clk 0:03:03.6]} 10... Bb4+ {[%clk 0:02:55.8]} 11.
c3 {[%clk 0:03:03.5]} 11... Be7 {[%clk 0:02:52.6]} 12. Ne4 {[%clk 0:02:59.3]}
12... Ngf6 {[%clk 0:02:48.3]} 13. Nd6+ {[%clk 0:02:54.1]} 13... Bxd6 {[%clk
0:02:48.4]} 14. Bxd6 {[%clk 0:02:55]} 14... Nb6 {[%clk 0:02:47.5]} 15. Ba3
{[%clk 0:02:52.1]} 15... Qd5 {[%clk 0:02:47]} 16. O-O {[%clk 0:02:48.2]} 16...
O-O-O {[%clk 0:02:44.8]} 17. b3 {[%clk 0:02:40.5]} 17... Qh5 {[%clk 0:02:43]}
18. g3 {[%clk 0:01:59.9]} 18... Nfd7 {[%clk 0:01:45]} 19. Rfe1 {[%clk 0:01:53]}
19... g5 {[%clk 0:01:44.8]} 20. Kg2 {[%clk 0:01:36.8]} 20... Rhg8 {[%clk
0:01:42.8]} 21. Rh1 {[%clk 0:01:24.8]} 21... Nd5 {[%clk 0:01:40.3]} 22. hxg5
{[%clk 0:01:15.4]} 22... Qg4 {[%clk 0:01:40.2]} 23. Bd6 {[%clk 0:00:47.7]} 23...
hxg5 {[%clk 0:01:37.3]} 24. c4 {[%clk 0:00:42.7]} 24... N7f6 {[%clk 0:01:23.7]}
25. cxd5 {[%clk 0:00:37.3]} 25... Rxd6 {[%clk 0:01:20.4]} 26. dxc6 {[%clk
0:00:35.8]} 26... Rxc6 {[%clk 0:01:17]} 27. Rac1 {[%clk 0:00:35.6]} 27... Rxc1
{[%clk 0:01:13.3]} 28. Rxc1+ {[%clk 0:00:33.9]} 28... Kb8 {[%clk 0:01:14]} 29.
Ne5 {[%clk 0:00:31.4]} 29... Qe4+ {[%clk 0:00:59.7]} 30. Qxe4 {[%clk 0:00:31.3]}
30... Nxe4 {[%clk 0:01:00.6]} 31. Nd7+ {[%clk 0:00:18.2]} 31... Ka8 {[%clk
0:00:59.4]} 32. Rc7 {[%clk 0:00:18.9]} 32... Nd6 {[%clk 0:00:55.6]} 33. Ne5
{[%clk 0:00:17.9]} 33... f6 {[%clk 0:00:51.7]} 34. Nd3 {[%clk 0:00:15.8]} 34...
Kb8 {[%clk 0:00:45.2]} 35. Rd7 {[%clk 0:00:14.7]} 35... Nf5 {[%clk 0:00:27.1]}
36. Nc5 {[%clk 0:00:14.5]} 36... Kc8 {[%clk 0:00:19.4]} 37. Rxb7 {[%clk
0:00:12.1]} 37... Nxd4 {[%clk 0:00:19.7]} 38. Rxa7 {[%clk 0:00:12.1]} 38... Kb8
{[%clk 0:00:20]} 39. Rb7+ {[%clk 0:00:12]} 39... Kc8 {[%clk 0:00:20.4]} 40. Ra7
{[%clk 0:00:11.4]} 40... Kb8 {[%clk 0:00:20.6]} 41. Re7 {[%clk 0:00:11.4]} 41...
Rc8 {[%clk 0:00:19]} 42. Nxe6 {[%clk 0:00:10.6]} 42... Nb5 {[%clk 0:00:18.1]}
43. Rf7 {[%clk 0:00:08.6]} 43... Rc2 {[%clk 0:00:16.8]} 44. Rxf6 {[%clk
0:00:08.5]} 44... Rxa2 {[%clk 0:00:16.7]} 45. Nxg5 {[%clk 0:00:08.9]} 45... Nd4
{[%clk 0:00:16.8]} 46. Rf7 {[%clk 0:00:08.3]} 46... Nxb3 {[%clk 0:00:16.7]} 47.
Kh3 {[%clk 0:00:08]} 47... Nd4 {[%clk 0:00:17]} 48. f4 {[%clk 0:00:08]} 48...
Ra1 {[%clk 0:00:17.4]} 49. Kg4 {[%clk 0:00:08]} 49... Ra5 {[%clk 0:00:16.7]} 50.
Ne4 {[%clk 0:00:08.1]} 50... Kc8 {[%clk 0:00:16.4]} 51. Nd6+ {[%clk 0:00:07.9]}
51... Kb8 {[%clk 0:00:15.9]} 52. Rb7+ {[%clk 0:00:07.4]} 52... Ka8 {[%clk
0:00:15.8]} 53. Rg7 {[%clk 0:00:07.5]} 53... Ra1 {[%clk 0:00:15]} 54. f5 {[%clk
0:00:06.3]} 54... Ra4 {[%clk 0:00:13.8]} 55. Kg5 {[%clk 0:00:05.3]} 55... Nf3+
{[%clk 0:00:13.4]} 56. Kf6 {[%clk 0:00:05.3]} 56... Ra6 {[%clk 0:00:12.5]} 57.
Ke6 {[%clk 0:00:04.1]} 57... Nd4+ {[%clk 0:00:12.3]} 58. Ke5 {[%clk 0:00:03]}
58... Nc6+ {[%clk 0:00:08.6]} 59. Kd5 {[%clk 0:00:02.6]} 59... Nb4+ {[%clk
0:00:09.1]} 60. Kc5 {[%clk 0:00:02.5]} 60... Nd3+ {[%clk 0:00:09.4]} 61. Kd5
{[%clk 0:00:02.1]} 61... Nb4+ {[%clk 0:00:09.9]} 62. Ke6 {[%clk 0:00:02.3]}
62... Nd3 {[%clk 0:00:09.2]} 63. Rg8+ {[%clk 0:00:03]} 63... Ka7 {[%clk
0:00:08.4]} 64. f6 {[%clk 0:00:03.6]} 64... Nc5+ {[%clk 0:00:08.2]} 65. Ke7
{[%clk 0:00:04.2]} 65... Ne4 {[%clk 0:00:07.4]} 66. Nb5+ {[%clk 0:00:04.4]}
66... Kb6 {[%clk 0:00:07.6]} 67. f7 {[%clk 0:00:04.5]} 67... Kxb5 {[%clk
0:00:06.2]} 68. f8=Q {[%clk 0:00:04.7]} 68... Ra7+ {[%clk 0:00:06.8]} 69. Ke6
{[%clk 0:00:04.8]} 69... Ra6+ {[%clk 0:00:07.4]} 70. Ke5 {[%clk 0:00:05]} 70...
Nc5 {[%clk 0:00:06.9]} 71. Qb8+ {[%clk 0:00:04.9]} 71... Rb6 {[%clk 0:00:07.3]}
72. Qxb6+ {[%clk 0:00:04.6]} 72... Kxb6 {[%clk 0:00:07.8]} 73. g4 {[%clk
0:00:05.1]} 73... Kc6 {[%clk 0:00:07.6]} 74. g5 {[%clk 0:00:05.5]} 74... Kd7
{[%clk 0:00:08.1]} 75. g6 {[%clk 0:00:05.2]} 75... Ke7 {[%clk 0:00:08.4]} 76.
Kf5 {[%clk 0:00:04.7]} 76... Nd7 {[%clk 0:00:08.7]} 77. Rg7+ {[%clk 0:00:04.7]}
77... Ke8 {[%clk 0:00:08.4]} 78. Rxd7 {[%clk 0:00:04.9]} 78... Kxd7 {[%clk
0:00:08.7]} 79. g7 {[%clk 0:00:05.4]} 1-0

[Event "Late-Titled-Tuesday-Blitz-August-29-2023"]
[Site "Chess.com"]
[Date "2023.08.29"]
[Round "1"]
[White "Cambek64"]
[Black "ckgchess"]
[Result "0-1"]
[WhiteElo "2475"]
[BlackElo "2904"]
[TimeControl "180+1"]
[EndTime "14:09:01 PDT"]
[Termination "ckgchess won on time"]

1. e4 {[%clk 0:03:00.9]} 1... c6 {[%clk 0:03:00]} 2. d3 {[%clk 0:03:00.3]} 2...
d5 {[%clk 0:03:00.3]} 3. Nd2 {[%clk 0:03:00.8]} 3... g6 {[%clk 0:03:00.1]} 4.
Ngf3 {[%clk 0:03:00]} 4... Bg7 {[%clk 0:03:00.6]} 5. Be2 {[%clk 0:02:57.4]} 5...
e5 {[%clk 0:03:00.1]} 6. O-O {[%clk 0:02:57.8]} 6... Ne7 {[%clk 0:03:00.3]} 7.
c4 {[%clk 0:02:56.4]} 7... O-O {[%clk 0:03:00.1]} 8. cxd5 {[%clk 0:02:53.8]}
8... cxd5 {[%clk 0:03:01]} 9. exd5 {[%clk 0:02:52.2]} 9... Nxd5 {[%clk
0:03:01.9]} 10. Nc4 {[%clk 0:02:51.8]} 10... Nc6 {[%clk 0:03:02.6]} 11. a4
{[%clk 0:02:47.9]} 11... Re8 {[%clk 0:02:56.9]} 12. Re1 {[%clk 0:02:46.6]} 12...
Bf5 {[%clk 0:02:53.4]} 13. Bg5 {[%clk 0:02:37.8]} 13... Qd7 {[%clk 0:02:53.3]}
14. Qb3 {[%clk 0:02:29.3]} 14... h6 {[%clk 0:02:51]} 15. Bd2 {[%clk 0:02:25.4]}
15... Rad8 {[%clk 0:02:49.1]} 16. Rad1 {[%clk 0:02:24.9]} 16... Bg4 {[%clk
0:02:46.9]} 17. Bc3 {[%clk 0:02:17.9]} 17... Nf4 {[%clk 0:02:41.7]} 18. Ncd2
{[%clk 0:01:51.5]} 18... Nxe2+ {[%clk 0:02:35]} 19. Rxe2 {[%clk 0:01:50.7]}
19... Qxd3 {[%clk 0:02:35.1]} 20. Rde1 {[%clk 0:01:49.3]} 20... b6 {[%clk
0:01:58.8]} 21. h3 {[%clk 0:01:35.2]} 21... Be6 {[%clk 0:01:55.3]} 22. Qb5
{[%clk 0:01:33]} 22... Qxb5 {[%clk 0:01:49.2]} 23. axb5 {[%clk 0:01:31.5]} 23...
Nd4 {[%clk 0:01:50.1]} 24. Rxe5 {[%clk 0:01:26.7]} 24... Nxf3+ {[%clk 0:01:45]}
25. Nxf3 {[%clk 0:01:25.8]} 25... Bxe5 {[%clk 0:01:45.3]} 26. Nxe5 {[%clk
0:01:25.2]} 26... Bb3 {[%clk 0:01:25.7]} 27. Ra1 {[%clk 0:01:22.8]} 27... Rd1+
{[%clk 0:01:24.1]} 28. Rxd1 {[%clk 0:01:20.9]} 28... Bxd1 {[%clk 0:01:25]} 29.
Nc6 {[%clk 0:01:10.4]} 29... Ra8 {[%clk 0:01:06.1]} 30. Kf1 {[%clk 0:01:01.3]}
30... Bb3 {[%clk 0:01:02.8]} 31. Nd4 {[%clk 0:01:00.4]} 31... Bd5 {[%clk
0:01:01.5]} 32. Ke1 {[%clk 0:01:01.1]} 32... Bxg2 {[%clk 0:01:00.3]} 33. h4
{[%clk 0:01:01.4]} 33... h5 {[%clk 0:00:59.9]} 34. f3 {[%clk 0:00:58.8]} 34...
Bh3 {[%clk 0:00:59.9]} 35. Kf2 {[%clk 0:00:59.2]} 35... Bd7 {[%clk 0:00:59.9]}
36. Kg3 {[%clk 0:00:59]} 36... Re8 {[%clk 0:00:59.4]} 37. Kf4 {[%clk 0:00:58.5]}
37... f6 {[%clk 0:00:57.5]} 38. Bb4 {[%clk 0:00:55.6]} 38... Kf7 {[%clk
0:00:56.9]} 39. Bd6 {[%clk 0:00:50.9]} 39... Rc8 {[%clk 0:00:54.4]} 40. b4
{[%clk 0:00:41.3]} 40... Rc4 {[%clk 0:00:42.4]} 41. Ke3 {[%clk 0:00:36.8]} 41...
g5 {[%clk 0:00:42.7]} 42. hxg5 {[%clk 0:00:34.2]} 42... fxg5 {[%clk 0:00:43.6]}
43. Kd3 {[%clk 0:00:34.2]} 43... Rc8 {[%clk 0:00:42.4]} 44. Ke4 {[%clk
0:00:31.8]} 44... Kg6 {[%clk 0:00:37.9]} 45. Kd5 {[%clk 0:00:30.2]} 45... h4
{[%clk 0:00:32.6]} 46. Nc6 {[%clk 0:00:30.5]} 46... Bxc6+ {[%clk 0:00:15]} 47.
bxc6 {[%clk 0:00:28.7]} 47... Kf6 {[%clk 0:00:08]} 48. c7 {[%clk 0:00:27.1]}
48... a5 {[%clk 0:00:07.2]} 49. b5 {[%clk 0:00:23.4]} 49... a4 {[%clk
0:00:07.4]} 50. Kc6 {[%clk 0:00:23.5]} 50... Ke6 {[%clk 0:00:05.1]} 51. Bb4
{[%clk 0:00:12.2]} 51... h3 {[%clk 0:00:04.5]} 52. Kb7 {[%clk 0:00:12.3]} 52...
Kd7 {[%clk 0:00:04.6]} 53. Kxb6 {[%clk 0:00:10.9]} 53... Rxc7 {[%clk 0:00:04.9]}
54. Ka5 {[%clk 0:00:08.8]} 54... h2 {[%clk 0:00:04.6]} 55. b6 {[%clk 0:00:08.3]}
55... h1=Q {[%clk 0:00:05.5]} 56. bxc7 {[%clk 0:00:08]} 56... Kxc7 {[%clk
0:00:06.4]} 57. Kxa4 {[%clk 0:00:07.6]} 57... Qxf3 {[%clk 0:00:06.8]} 58. Kb5
{[%clk 0:00:06.6]} 58... g4 {[%clk 0:00:07.7]} 59. Bc5 {[%clk 0:00:06]} 59...
Kd7 {[%clk 0:00:08.6]} 60. Kc4 {[%clk 0:00:05.1]} 60... Ke6 {[%clk 0:00:09.5]}
61. Bd4 {[%clk 0:00:04.8]} 61... Kf5 {[%clk 0:00:10.4]} 62. Kc5 {[%clk
0:00:04.7]} 62... Qe4 {[%clk 0:00:11.3]} 63. Kc4 {[%clk 0:00:05.1]} 63... g3
{[%clk 0:00:11.7]} 64. Kc3 {[%clk 0:00:05.4]} 64... g2 {[%clk 0:00:12.6]} 65.
Bc5 {[%clk 0:00:05.5]} 65... Kg4 {[%clk 0:00:13.5]} 66. Bb6 {[%clk 0:00:05.2]}
66... Kf3 {[%clk 0:00:14.4]} 67. Bc5 {[%clk 0:00:05.3]} 67... Ke2 {[%clk
0:00:15.3]} 68. Ba7 {[%clk 0:00:04.9]} 68... Qd3+ {[%clk 0:00:16.2]} 69. Kb4
{[%clk 0:00:04.2]} 69... Qa6 {[%clk 0:00:17.1]} 70. Bg1 {[%clk 0:00:03.3]} 70...
Kd3 {[%clk 0:00:18]} 71. Kc5 {[%clk 0:00:02.3]} 71... Qc4+ {[%clk 0:00:18.9]}
72. Kd6 {[%clk 0:00:02.3]} 72... Ke4 {[%clk 0:00:19.6]} 73. Ke7 {[%clk
0:00:02.2]} 73... Kf5 {[%clk 0:00:19.3]} 74. Kd6 {[%clk 0:00:02.4]} 74... Qd3+
{[%clk 0:00:18.5]} 0-1

[Event "Late-Titled-Tuesday-Blitz-August-29-2023"]
[Site "Chess.com"]
[Date "2023.08.29"]
[Round "1"]
[White "kingofthenil"]
[Black "ashookk"]
[Result "1-0"]
[WhiteElo "2655"]
[BlackElo "2355"]
[TimeControl "180+1"]
[EndTime "14:09:11 PDT"]
[Termination "kingofthenil won by checkmate"]

1. Nf3 {[%clk 0:02:59.2]} 1... Nf6 {[%clk 0:03:00.4]} 2. g3 {[%clk 0:02:58.9]}
2... g6 {[%clk 0:03:00.9]} 3. Bg2 {[%clk 0:02:56.2]} 3... Bg7 {[%clk 0:03:01.8]}
4. O-O {[%clk 0:02:55.3]} 4... O-O {[%clk 0:03:02.6]} 5. c4 {[%clk 0:02:54.9]}
5... d6 {[%clk 0:03:02.2]} 6. d4 {[%clk 0:02:53.3]} 6... c5 {[%clk 0:03:02.7]}
7. Nc3 {[%clk 0:02:51.7]} 7... Nc6 {[%clk 0:03:02.8]} 8. dxc5 {[%clk 0:02:49.3]}
8... dxc5 {[%clk 0:03:02.5]} 9. h3 {[%clk 0:02:49.2]} 9... Be6 {[%clk
0:02:58.8]} 10. Ng5 {[%clk 0:02:47]} 10... Qxd1 {[%clk 0:02:51.1]} 11. Rxd1
{[%clk 0:02:47.9]} 11... Bxc4 {[%clk 0:02:51.3]} 12. Be3 {[%clk 0:02:45.4]}
12... Nd4 {[%clk 0:02:32.8]} 13. Bxd4 {[%clk 0:02:42.6]} 13... cxd4 {[%clk
0:02:33.7]} 14. Rxd4 {[%clk 0:02:42.6]} 14... Ba6 {[%clk 0:02:29.2]} 15. Rb4
{[%clk 0:02:42.4]} 15... Rab8 {[%clk 0:02:19.3]} 16. Nb5 {[%clk 0:02:38]} 16...
h6 {[%clk 0:02:12]} 17. Nf3 {[%clk 0:02:37.4]} 17... Nd5 {[%clk 0:02:08.3]} 18.
Rb3 {[%clk 0:02:36.9]} 18... Bxb5 {[%clk 0:02:04.4]} 19. Rxb5 {[%clk 0:02:37.8]}
19... e6 {[%clk 0:02:02.3]} 20. Nd2 {[%clk 0:02:33.1]} 20... Rfd8 {[%clk
0:01:59.1]} 21. Nc4 {[%clk 0:02:31.1]} 21... b6 {[%clk 0:01:53.4]} 22. Kf1
{[%clk 0:02:27.8]} 22... Rbc8 {[%clk 0:01:46.9]} 23. Bxd5 {[%clk 0:02:18.4]}
23... exd5 {[%clk 0:01:45.5]} 24. Ne3 {[%clk 0:02:17.4]} 24... d4 {[%clk
0:01:40.8]} 25. Nd5 {[%clk 0:02:17.4]} 25... Rc5 {[%clk 0:01:33.2]} 26. Rxc5
{[%clk 0:02:12.6]} 26... bxc5 {[%clk 0:01:34.1]} 27. Ne7+ {[%clk 0:02:08.9]}
27... Kf8 {[%clk 0:01:31.9]} 28. Nc6 {[%clk 0:02:09.8]} 28... Rd6 {[%clk
0:01:13.7]} 29. Na5 {[%clk 0:01:19.6]} 29... d3 {[%clk 0:01:13.9]} 30. Nc4
{[%clk 0:01:10.1]} 30... Rd4 {[%clk 0:01:13.5]} 31. exd3 {[%clk 0:01:06.7]}
31... Rxd3 {[%clk 0:01:12.5]} 32. Ke2 {[%clk 0:01:06.2]} 32... Rd5 {[%clk
0:01:06.6]} 33. Rd1 {[%clk 0:01:03.8]} 33... Bd4 {[%clk 0:01:07.2]} 34. f4
{[%clk 0:00:55.1]} 34... Kg7 {[%clk 0:01:03.9]} 35. Kf3 {[%clk 0:00:55.2]} 35...
Rd7 {[%clk 0:01:01.8]} 36. g4 {[%clk 0:00:46]} 36... Rb7 {[%clk 0:00:59.2]} 37.
b3 {[%clk 0:00:45.9]} 37... a5 {[%clk 0:00:53.1]} 38. Nxa5 {[%clk 0:00:42]}
38... Ra7 {[%clk 0:00:52.4]} 39. Nc6 {[%clk 0:00:42.4]} 39... Rxa2 {[%clk
0:00:52.6]} 40. Nxd4 {[%clk 0:00:43]} 40... cxd4 {[%clk 0:00:52.6]} 41. Rxd4
{[%clk 0:00:43.9]} 41... Rb2 {[%clk 0:00:52.1]} 42. Rd3 {[%clk 0:00:43.8]} 42...
Kf6 {[%clk 0:00:50]} 43. Ke4 {[%clk 0:00:43.9]} 43... Ke6 {[%clk 0:00:49.2]} 44.
Kd4 {[%clk 0:00:42.9]} 44... h5 {[%clk 0:00:44.9]} 45. Re3+ {[%clk 0:00:35.3]}
45... Kf6 {[%clk 0:00:43.7]} 46. Kc5 {[%clk 0:00:18.1]} 46... hxg4 {[%clk
0:00:41.5]} 47. hxg4 {[%clk 0:00:19]} 47... Rc2+ {[%clk 0:00:41.7]} 48. Kd4
{[%clk 0:00:15.6]} 48... Rg2 {[%clk 0:00:42]} 49. g5+ {[%clk 0:00:06.4]} 49...
Kf5 {[%clk 0:00:41.6]} 50. Rf3 {[%clk 0:00:03.3]} 50... Rb2 {[%clk 0:00:38.7]}
51. Kc3 {[%clk 0:00:03.1]} 51... Rb1 {[%clk 0:00:39.1]} 52. b4 {[%clk
0:00:03.3]} 52... Rc1+ {[%clk 0:00:38.7]} 53. Kd4 {[%clk 0:00:03.2]} 53... Rd1+
{[%clk 0:00:36.8]} 54. Kc4 {[%clk 0:00:02.7]} 54... Ke4 {[%clk 0:00:36.9]} 55.
Rf2 {[%clk 0:00:02.7]} 55... Rc1+ {[%clk 0:00:37.4]} 56. Kb3 {[%clk 0:00:02.6]}
56... Ke3 {[%clk 0:00:35.6]} 57. Rc2 {[%clk 0:00:02.9]} 57... Rb1+ {[%clk
0:00:35.9]} 58. Rb2 {[%clk 0:00:03]} 58... Rc1 {[%clk 0:00:34.4]} 59. b5 {[%clk
0:00:03.9]} 59... Kxf4 {[%clk 0:00:31.2]} 60. b6 {[%clk 0:00:04.2]} 60... Rc8
{[%clk 0:00:27]} 61. Rc2 {[%clk 0:00:04.5]} 61... Rb8 {[%clk 0:00:26.3]} 62.
Rc4+ {[%clk 0:00:03.6]} 62... Kxg5 {[%clk 0:00:26.3]} 63. Rb4 {[%clk 0:00:03.9]}
63... f5 {[%clk 0:00:26.5]} 64. Kc3 {[%clk 0:00:04.8]} 64... f4 {[%clk 0:00:26]}
65. Kd3 {[%clk 0:00:05.7]} 65... Kg4 {[%clk 0:00:26.1]} 66. Ke2 {[%clk
0:00:06.2]} 66... g5 {[%clk 0:00:26.8]} 67. Kf2 {[%clk 0:00:06.1]} 67... Rb7
{[%clk 0:00:24.4]} 68. Rb5 {[%clk 0:00:05.3]} 68... Kh3 {[%clk 0:00:18]} 69. Kf3
{[%clk 0:00:03.5]} 69... Rf7 {[%clk 0:00:18.4]} 70. Rxg5 {[%clk 0:00:03]} 70...
Rb7 {[%clk 0:00:17.5]} 71. Rb5 {[%clk 0:00:03.4]} 71... Kh4 {[%clk 0:00:17.1]}
72. Kxf4 {[%clk 0:00:03.8]} 72... Kh3 {[%clk 0:00:16.5]} 73. Rh5+ {[%clk
0:00:02.7]} 73... Kg2 {[%clk 0:00:16.4]} 74. Rh6 {[%clk 0:00:03.6]} 74... Kf2
{[%clk 0:00:17.3]} 75. Ke4 {[%clk 0:00:03.8]} 75... Ke2 {[%clk 0:00:17.5]} 76.
Kd5 {[%clk 0:00:03.9]} 76... Rd7+ {[%clk 0:00:17.7]} 77. Kc6 {[%clk 0:00:04]}
77... Rd1 {[%clk 0:00:18.2]} 78. Rh5 {[%clk 0:00:03.6]} 78... Rc1+ {[%clk
0:00:17.7]} 79. Rc5 {[%clk 0:00:03.9]} 79... Rb1 {[%clk 0:00:17.6]} 80. b7
{[%clk 0:00:04.8]} 80... Kd3 {[%clk 0:00:17.8]} 81. Rb5 {[%clk 0:00:05.2]} 81...
Rc1+ {[%clk 0:00:17.6]} 82. Kd5 {[%clk 0:00:05.6]} 82... Rh1 {[%clk 0:00:16.6]}
83. b8=Q {[%clk 0:00:06.5]} 83... Rh5+ {[%clk 0:00:17.3]} 84. Ke6 {[%clk
0:00:05.9]} 84... Rh6+ {[%clk 0:00:18.2]} 85. Kf7 {[%clk 0:00:06.1]} 85... Rh7+
{[%clk 0:00:19.1]} 86. Kg6 {[%clk 0:00:06.5]} 86... Rd7 {[%clk 0:00:18.7]} 87.
Rb3+ {[%clk 0:00:05.9]} 87... Kd4 {[%clk 0:00:19.6]} 88. Qb4+ {[%clk 0:00:06.2]}
88... Kd5 {[%clk 0:00:19.8]} 89. Rd3+ {[%clk 0:00:06.6]} 89... Ke6 {[%clk
0:00:19.8]} 90. Qe4# {[%clk 0:00:06.5]} 1-0